bitfinex-derivatives/quotes_SOLF0:USTF0_20260118
["timestamp","ask_amount","ask_price","bid_price","bid_amount"]
[1768724153898,0.04520776,142.02,141.99,6.32122545]
[1768724154895,6.3389,142.03,142.0,4.5445987]
[1768724155096,6.3389,142.03,142.0,9.87e-05]
[1768724161901,11.00047071,142.05,142.0,9.87e-05]
[1768724162890,11.00047071,142.05,142.01,0.05209037]
[1768724173005,4.66217071,142.04,142.01,0.05209037]
[1768724173510,4.66217071,142.04,141.96,163.27543869]
[1768724173808,4.71414241,142.04,141.96,165.05206544]
[1768724174205,4.71414241,142.04,141.97,4.5445987]
[1768724178222,4.71414241,142.04,141.97,6.32122545]
[1768724180127,4.71414241,142.04,141.97,4.5445987]
[1768724193440,4.71414241,142.04,141.97,6.32225693]
[1768724193644,4.71414241,142.04,141.97,4.5445987]
[1768724193836,4.71414241,142.04,141.97,6.32225693]
[1768724204246,4.71414241,142.04,141.98,4.92475852]
[1768724218366,4.74370204,142.03,141.96,163.68899221]
[1768724218966,10.20233732,142.02,141.96,163.68899221]
[1768724219262,0.0520364,142.01,141.96,163.68899221]
[1768724222970,4.79573844,142.01,141.96,163.68899221]
[1768724230075,11.13553844,142.01,141.96,163.68899221]
[1768724231873,4.79573844,142.01,141.96,163.68899221]
[1768724234579,0.0520364,142.01,141.96,163.68899221]
[1768724242884,0.0520364,142.01,141.96,165.46665044]
[1768724243688,5.20819404,142.01,141.96,6.73581045]
[1768724243894,5.20819404,142.01,141.94,5.15810158]
[1768724244089,5.20819404,142.01,141.95,1.77765823]
[1768724244488,5.15615764,142.01,141.95,6.93575981]
[1768724244889,0.04931862,141.99,141.95,6.93575981]
[1768724255000,0.04931862,141.99,141.95,5.15810158]
[1768724255201,0.04931862,141.99,141.95,6.93575981]
[1768724255400,0.04931862,141.99,141.95,6.93653703]
[1768724263910,0.04931862,141.99,141.95,5.15810158]
[1768724264112,0.04931862,141.99,141.95,6.93653703]
[1768724264805,0.04931862,141.99,141.96,5.06971815]
[1768724275020,0.04931862,141.99,141.96,11.41161815]
[1768724311669,0.04931862,141.99,141.97,5.10099752]
[1768724311870,1.77843545,142.01,141.97,5.10099752]
[1768724315281,1.77863891,142.02,141.97,5.10099752]
[1768724315463,5.46914633,142.01,141.97,5.10099752]
[1768724315663,1.77863891,142.02,141.97,5.10099752]
[1768724315870,5.46914633,142.01,141.97,5.10099752]
[1768724316071,1.77863891,142.02,141.97,5.10099752]
[1768724316072,7.01861509,142.02,141.97,5.10099752]
[1768724316272,5.46914633,142.01,141.97,11.44249752]
[1768724316476,7.01861509,142.02,141.97,11.44249752]
[1768724316678,5.4691473,142.01,141.97,11.44249752]
[1768724316875,7.01861509,142.02,141.97,11.44249752]
[1768724317176,5.4691473,142.01,141.97,11.44249752]
[1768724317478,7.01861509,142.02,141.97,11.44249752]
[1768724317670,5.4691473,142.01,141.97,11.44249752]
[1768724317873,7.01861509,142.02,141.97,11.44249752]
[1768724318071,5.46914732,142.01,141.97,11.44249752]
[1768724318271,7.01861509,142.02,141.97,11.44249752]
[1768724318467,5.46914962,142.01,141.97,11.44249752]
[1768724318673,7.01861509,142.02,141.97,11.44249752]
[1768724318872,5.46914962,142.01,141.97,11.44249752]
[1768724319078,7.01861509,142.02,141.97,11.44249752]
[1768724319279,5.46914962,142.01,141.97,11.44249752]
[1768724319578,7.01861509,142.02,141.97,11.44249752]
[1768724319778,5.46914962,142.01,141.97,11.44249752]
[1768724320080,7.01861509,142.02,141.97,11.44249752]
[1768724320279,5.46914962,142.01,141.97,11.44249752]
[1768724320583,7.01861509,142.02,141.97,11.44249752]
[1768724320880,5.46914732,142.01,141.97,11.44249752]
[1768724321080,7.01861509,142.02,141.97,11.44249752]
[1768724321376,5.46914732,142.01,141.97,11.44249752]
[1768724321577,7.01861509,142.02,141.97,11.44249752]
[1768724321781,5.46914638,142.01,141.97,11.44249752]
[1768724322079,7.01861509,142.02,141.97,11.44249752]
[1768724322279,5.46914638,142.01,141.97,11.44249752]
[1768724322475,7.01861509,142.02,141.97,11.44249752]
[1768724322679,5.46914962,142.01,141.97,11.44249752]
[1768724322977,7.01861509,142.02,141.97,11.44249752]
[1768724323179,5.46914962,142.01,141.97,11.44249752]
[1768724323380,7.01861509,142.02,141.97,11.44249752]
[1768724323580,5.46914732,142.01,141.97,11.44249752]
[1768724323780,7.01861509,142.02,141.97,11.44249752]
[1768724324081,5.46914732,142.01,141.97,11.44249752]
[1768724324380,7.01861509,142.02,141.97,11.44249752]
[1768724324575,5.46914028,142.01,141.97,11.44249752]
[1768724324880,7.01861509,142.02,141.97,11.44249752]
[1768724325078,5.47484422,142.01,141.97,11.44249752]
[1768724325280,7.01861509,142.02,141.97,11.44249752]
[1768724325476,5.47484746,142.01,141.97,11.44249752]
[1768724325673,7.01861509,142.02,141.97,11.44249752]
[1768724325881,5.47484746,142.01,141.97,11.44249752]
[1768724326178,7.01861509,142.02,141.97,11.44249752]
[1768724326379,5.47484527,142.01,141.97,11.44249752]
[1768724326584,7.01861509,142.02,141.97,11.44249752]
[1768724326876,5.47484522,142.01,141.97,11.44249752]
[1768724327081,5.23997618,142.02,141.97,11.44249752]
[1768724327283,5.47484522,142.01,141.97,11.44249752]
[1768724327481,5.23997618,142.02,141.97,11.44249752]
[1768724327672,5.47484522,142.01,141.97,11.44249752]
[1768724327875,5.23997618,142.02,141.97,11.44249752]
[1768724328081,5.47487812,142.01,141.97,11.44249752]
[1768724328284,5.23997618,142.02,141.97,11.44249752]
[1768724328490,5.47487719,142.01,141.97,11.44249752]
[1768724328684,5.23997618,142.02,141.97,11.44249752]
[1768724328982,5.47522168,142.01,141.97,11.44249752]
[1768724329181,5.23997618,142.02,141.97,11.44249752]
[1768724329383,5.47594863,142.01,141.97,11.44249752]
[1768724329682,5.23997618,142.02,141.97,11.44249752]
[1768724329883,5.23997618,142.0,141.96,0.05060799]
[1768724330083,5.47594863,141.99,141.96,0.05060799]
[1768724330283,5.23997618,142.0,141.96,0.05060799]
[1768724330988,5.23997618,142.0,141.96,6.39250799]
[1768724341888,5.23997618,142.0,141.96,0.05060799]
[1768724355893,11.58027618,142.0,141.96,0.05060799]
[1768724358897,6.3408,141.99,141.96,0.05060799]
[1768724359897,6.3408,141.99,141.95,2.183e-05]
[1768724360095,98.5856,142.06,142.0,1.77863891]
[1768724360598,6.3383,142.05,142.0,1.77863891]
[1768724360992,6.3383,142.05,141.99,2.62284457]
[1768724361391,6.3385,142.04,141.99,2.62284457]
[1768724362297,5.3460831,142.05,141.99,4.457e-05]
[1768724362298,6.339,142.03,141.99,4.457e-05]
[1768724362496,4.8525593,142.03,141.93,157.89424359]
[1768724362699,4.8525593,142.03,141.96,1.77863891]
[1768724363288,6.63119821,142.03,141.94,1.77863891]
[1768724364097,4.8525593,142.02,141.94,1.77863891]
[1768724364497,4.8525593,142.02,141.95,0.0903402]
[1768724372007,11.1919593,142.02,141.95,0.0903402]
[1768724375613,5.13353558,142.01,141.95,0.0903402]
[1768724393031,5.13353558,142.01,141.95,1.8686068]
[1768724396132,5.34530841,142.03,141.97,1.7782666]
[1768724396332,5.34530841,142.03,141.97,2.4338307]
[1768724397938,5.34530841,142.03,141.97,8.7752307]
[1768724398431,5.34530841,142.03,141.98,6.341]
[1768724401334,5.34530841,142.03,141.97,2.4338307]
[1768724402336,5.34530841,142.03,141.97,8.7752307]
[1768724403327,5.34530841,142.03,141.98,7.08837014]
[1768724403530,5.34530841,142.03,141.99,1.7782666]
[1768724405934,1.7782666,142.07,141.99,8.1187666]
[1768724406233,5.37603576,142.06,141.99,13.62555686]
[1768724406433,6.3357,142.1,141.99,13.62555686]
[1768724406634,1.7782666,142.08,141.99,13.62555686]
[1768724406836,5.37548897,142.07,141.99,13.62555686]
[1768724407027,5.37548897,142.06,141.99,13.62555686]
[1768724407233,1.7782666,142.08,141.99,13.62555686]
[1768724407433,5.3746471,142.07,141.99,13.62555686]
[1768724407741,1.7782666,142.08,141.99,13.62555686]
[1768724407942,5.34530841,142.06,141.99,13.62555686]
[1768724411545,5.34530841,142.06,142.0,6.3398]
[1768724416247,5.34530841,142.06,142.01,6.3396]
[1768724419044,5.34530841,142.06,142.02,6.3392]
[1768724442070,7.60442123,142.05,142.0,6.34]
[1768724443773,5.82716095,142.05,142.0,6.34]
[1768724449272,5.82716095,142.05,141.99,5.50679026]
[1768724449273,5.82716095,142.05,142.01,6.3396]
[1768724459480,5.65443751,142.03,141.97,6.12466299]
[1768724464776,5.65443751,142.05,141.99,6.12466299]
[1768724467693,5.65443751,142.07,142.02,7.90192327]
[1768724467989,5.65443751,142.07,142.02,6.12466299]
[1768724468189,5.65443751,142.07,142.0,1.77726028]
[1768724468388,5.65443751,142.07,142.0,7.90192327]
[1768724471889,5.65443751,142.07,142.01,6.12466299]
[1768724472890,5.65443751,142.07,142.01,12.46416299]
[1768724477692,5.35193243,142.06,142.01,12.46416299]
[1768724477894,5.65443751,142.07,142.01,12.46416299]
[1768724478085,5.35187062,142.06,142.01,12.46416299]
[1768724478287,5.65443751,142.07,142.01,12.46416299]
[1768724478594,5.35194273,142.06,142.01,12.46416299]
[1768724478795,5.65443751,142.07,142.01,12.46416299]
[1768724479089,5.35177208,142.06,142.01,12.46416299]
[1768724479393,5.65443751,142.07,142.01,12.46416299]
[1768724479594,5.35198628,142.06,142.01,12.46416299]
[1768724479894,5.65443751,142.07,142.01,12.46416299]
[1768724480095,5.35192291,142.06,142.01,12.46416299]
[1768724480401,5.65443751,142.07,142.01,12.46416299]
[1768724480592,5.35206364,142.06,142.01,12.46416299]
[1768724480792,5.65443751,142.07,142.01,12.46416299]
[1768724480993,5.35206364,142.06,142.01,12.46416299]
[1768724481199,5.65443751,142.07,142.01,12.46416299]
[1768724481397,5.35214258,142.06,142.01,12.46416299]
[1768724481699,5.65443751,142.07,142.01,12.46416299]
[1768724482200,5.35223613,142.06,142.01,12.46416299]
[1768724482393,5.65443751,142.07,142.01,12.46416299]
[1768724482696,5.3522204,142.06,142.01,12.46416299]
[1768724482895,5.65443751,142.07,142.01,12.46416299]
[1768724483193,5.3522204,142.06,142.01,12.46416299]
[1768724483496,5.65443751,142.07,142.01,12.46416299]
[1768724483694,5.35229052,142.06,142.01,12.46416299]
[1768724483997,5.65443751,142.07,142.01,12.46416299]
[1768724484197,5.3523024,142.06,142.01,12.46416299]
[1768724484398,5.65443751,142.07,142.01,12.46416299]
[1768724484596,5.35238609,142.06,142.01,12.46416299]
[1768724484797,5.65443751,142.07,142.01,12.46416299]
[1768724485099,5.35335085,142.06,142.01,12.46416299]
[1768724485294,5.65443751,142.07,142.01,12.46416299]
[1768724485497,5.35339519,142.06,142.01,12.46416299]
[1768724485798,5.65443751,142.07,142.01,12.46416299]
[1768724493305,5.65443751,142.07,142.02,6.00540629]
[1768724512124,5.36663154,142.06,142.02,6.00540629]
[1768724512323,5.65443751,142.07,142.02,6.00540629]
[1768724512520,5.36662558,142.06,142.02,6.00540629]
[1768724512724,5.65443751,142.07,142.02,6.00540629]
[1768724512925,5.36662558,142.06,142.02,6.00540629]
[1768724513223,5.65443751,142.07,142.02,6.00540629]
[1768724513412,5.36659753,142.06,142.02,6.00540629]
[1768724513614,5.65443751,142.07,142.02,6.00540629]
[1768724513923,5.36659753,142.06,142.02,6.00540629]
[1768724514221,5.65443751,142.07,142.02,6.00540629]
[1768724514521,5.36658745,142.06,142.02,6.00540629]
[1768724514710,5.65443751,142.07,142.02,6.00540629]
[1768724514914,5.36657553,142.06,142.02,6.00540629]
[1768724515115,5.65443751,142.07,142.02,6.00540629]
[1768724515316,5.36658072,142.06,142.02,6.00540629]
[1768724515520,5.65443751,142.07,142.02,6.00540629]
[1768724515819,5.36658072,142.06,142.02,6.00540629]
[1768724516019,5.65443751,142.07,142.02,6.00540629]
[1768724516220,5.36658072,142.06,142.02,6.00540629]
[1768724516421,5.65443751,142.07,142.02,6.00540629]
[1768724516621,5.36659387,142.06,142.02,6.00540629]
[1768724516823,5.65443751,142.07,142.02,6.00540629]
[1768724517022,5.36659387,142.06,142.02,6.00540629]
[1768724517322,5.65443751,142.07,142.02,6.00540629]
[1768724517523,5.36658791,142.06,142.02,6.00540629]
[1768724517724,5.65443751,142.07,142.02,6.00540629]
[1768724518023,5.3665879,142.06,142.02,6.00540629]
[1768724518225,5.65443751,142.07,142.02,6.00540629]
[1768724518424,5.36662565,142.06,142.02,6.00540629]
[1768724518626,5.65443751,142.07,142.02,6.00540629]
[1768724518828,5.36662565,142.06,142.02,6.00540629]
[1768724519024,5.65443751,142.07,142.02,6.00540629]
[1768724519216,5.36662565,142.06,142.02,6.00540629]
[1768724519417,5.65443751,142.07,142.02,6.00540629]
[1768724519728,5.36667217,142.06,142.02,12.34460629]
[1768724519929,5.65443751,142.07,142.02,12.34460629]
[1768724520128,5.36667217,142.06,142.02,12.34460629]
[1768724520425,5.65443751,142.07,142.02,12.34460629]
[1768724520622,5.36670669,142.06,142.02,12.34460629]
[1768724520821,5.65443751,142.07,142.02,12.34460629]
[1768724521026,5.36670669,142.06,142.02,12.34460629]
[1768724521220,5.65443751,142.07,142.02,12.34460629]
[1768724521423,5.36679034,142.06,142.02,12.34460629]
[1768724521626,5.65443751,142.07,142.02,12.34460629]
[1768724521928,5.36751556,142.06,142.02,12.34460629]
[1768724522230,5.65443751,142.07,142.02,12.34460629]
[1768724522437,5.3689898,142.06,142.02,12.34460629]
[1768724522731,5.65443751,142.07,142.02,12.34460629]
[1768724522933,5.36895879,142.06,142.02,12.34460629]
[1768724523135,5.65443751,142.07,142.02,12.34460629]
[1768724523431,5.36907394,142.06,142.02,12.34460629]
[1768724523627,5.65443751,142.07,142.02,12.34460629]
[1768724523819,5.36904888,142.06,142.02,12.34460629]
[1768724524021,5.65443751,142.07,142.02,12.34460629]
[1768724524232,5.36953565,142.06,142.02,12.34460629]
[1768724524424,5.65443751,142.07,142.02,12.34460629]
[1768724524624,5.36993285,142.06,142.02,12.34460629]
[1768724524832,5.65443751,142.07,142.02,12.34460629]
[1768724525133,5.36993285,142.06,142.02,12.34460629]
[1768724525325,5.65443751,142.07,142.02,12.34460629]
[1768724525521,5.37003935,142.06,142.02,12.34460629]
[1768724525733,5.65443751,142.07,142.02,12.34460629]
[1768724525936,5.37007084,142.06,142.02,12.34460629]
[1768724526234,6.26704476,142.09,142.03,12.68030565]
[1768724526434,5.37049081,142.08,142.03,12.68030565]
[1768724526634,5.37049081,142.07,142.03,12.68030565]
[1768724526935,8.04378826,142.09,142.03,12.68030565]
[1768724527134,5.37057095,142.08,142.03,12.68030565]
[1768724527334,5.37057095,142.07,142.03,12.68030565]
[1768724527536,8.04378826,142.09,142.03,12.68030565]
[1768724527834,5.37027767,142.08,142.03,12.68030565]
[1768724528035,5.37027767,142.07,142.03,12.68030565]
[1768724528335,8.04378826,142.09,142.03,12.68030565]
[1768724528537,5.37008031,142.08,142.03,12.68030565]
[1768724528738,5.37008031,142.07,142.03,12.68030565]
[1768724528938,8.04378826,142.09,142.03,12.68030565]
[1768724529138,5.37008031,142.08,142.03,12.68030565]
[1768724529440,5.37008031,142.07,142.03,12.68030565]
[1768724529639,8.04378826,142.09,142.03,12.68030565]
[1768724529940,5.36993997,142.08,142.03,12.68030565]
[1768724530240,5.36993997,142.07,142.03,12.68030565]
[1768724530438,8.04378826,142.09,142.03,12.68030565]
[1768724530737,5.36985047,142.08,142.03,12.68030565]
[1768724530937,5.36985047,142.07,142.03,12.68030565]
[1768724531238,8.04378826,142.09,142.03,12.68030565]
[1768724531433,5.36785383,142.08,142.03,12.68030565]
[1768724531640,5.36785383,142.07,142.03,12.68030565]
[1768724531933,8.04378826,142.09,142.03,12.68030565]
[1768724532135,5.36717047,142.08,142.03,12.68030565]
[1768724532336,5.36717047,142.07,142.03,12.68030565]
[1768724532528,8.04378826,142.09,142.03,12.68030565]
[1768724532732,5.3664298,142.08,142.03,12.68030565]
[1768724532934,5.3664298,142.07,142.03,12.68030565]
[1768724533134,8.04378826,142.09,142.03,12.68030565]
[1768724533335,5.36602275,142.08,142.03,12.68030565]
[1768724533533,5.36602275,142.07,142.03,12.68030565]
[1768724533732,8.04378826,142.09,142.03,12.68030565]
[1768724533929,5.36595922,142.08,142.03,12.68030565]
[1768724534129,5.36595922,142.07,142.03,12.68030565]
[1768724534429,8.04378826,142.09,142.03,12.68030565]
[1768724534634,5.36585302,142.08,142.03,12.68030565]
[1768724534942,5.36585302,142.07,142.03,12.68030565]
[1768724535252,8.04378826,142.09,142.03,12.68030565]
[1768724535449,5.37665562,142.08,142.03,12.68030565]
[1768724535744,5.37665562,142.07,142.03,12.68030565]
[1768724535943,8.04378826,142.09,142.03,12.68030565]
[1768724536137,5.37665562,142.08,142.03,12.68030565]
[1768724536338,5.37665562,142.07,142.03,12.68030565]
[1768724536539,6.26704476,142.09,142.03,12.68030565]
[1768724536841,5.37666488,142.08,142.03,12.68030565]
[1768724537041,5.37666488,142.07,142.03,12.68030565]
[1768724537336,8.04378826,142.09,142.03,12.68030565]
[1768724537536,5.3765653,142.08,142.03,12.68030565]
[1768724537748,5.3765653,142.07,142.03,12.68030565]
[1768724537941,8.04378826,142.09,142.03,12.68030565]
[1768724538141,5.37656751,142.08,142.03,12.68030565]
[1768724538341,5.37656751,142.07,142.03,12.68030565]
[1768724538541,8.04378826,142.09,142.03,12.68030565]
[1768724538742,5.37656157,142.08,142.03,12.68030565]
[1768724538943,5.37656157,142.07,142.03,12.68030565]
[1768724539243,8.04378826,142.09,142.03,12.68030565]
[1768724539443,5.37657881,142.08,142.03,12.68030565]
[1768724539639,5.37657881,142.07,142.03,12.68030565]
[1768724539838,8.04378826,142.09,142.03,12.68030565]
[1768724540039,5.37611514,142.08,142.03,6.34150565]
[1768724540238,5.37611514,142.07,142.03,6.34150565]
[1768724540446,8.04378826,142.09,142.03,6.34150565]
[1768724540649,5.37622865,142.08,142.03,6.34150565]
[1768724540948,5.37622865,142.07,142.03,6.34150565]
[1768724541245,8.04378826,142.09,142.03,6.34150565]
[1768724541446,5.37628362,142.08,142.03,6.34150565]
[1768724541647,5.37628362,142.07,142.03,6.34150565]
[1768724541846,8.04378826,142.09,142.03,6.34150565]
[1768724542146,5.37630275,142.08,142.03,6.34150565]
[1768724542345,5.37630275,142.07,142.03,6.34150565]
[1768724542550,8.04378826,142.09,142.03,6.34150565]
[1768724542846,5.37607918,142.08,142.03,6.34150565]
[1768724543046,5.37607918,142.07,142.03,6.34150565]
[1768724543245,8.04378826,142.09,142.03,6.34150565]
[1768724543444,5.37657519,142.08,142.03,6.34150565]
[1768724543742,5.37657519,142.07,142.03,6.34150565]
[1768724543938,8.04378826,142.09,142.03,6.34150565]
[1768724544140,5.37702308,142.08,142.03,6.34150565]
[1768724544335,5.37702308,142.07,142.03,6.34150565]
[1768724544541,8.04378826,142.09,142.03,6.34150565]
[1768724544742,5.37697396,142.08,142.03,6.34150565]
[1768724544943,5.37697396,142.07,142.03,6.34150565]
[1768724545142,8.04378826,142.09,142.03,6.34150565]
[1768724545344,5.37693969,142.08,142.03,6.34150565]
[1768724545647,5.37693969,142.07,142.03,6.34150565]
[1768724545847,8.04378826,142.09,142.03,6.34150565]
[1768724546040,5.37693969,142.08,142.03,6.34150565]
[1768724546236,5.37693969,142.07,142.03,6.34150565]
[1768724546443,14.37998826,142.09,142.03,6.34150565]
[1768724546647,5.37691413,142.08,142.03,6.34150565]
[1768724546837,5.37691413,142.07,142.03,6.34150565]
[1768724547043,14.37998826,142.09,142.03,6.34150565]
[1768724547342,5.3772463,142.08,142.03,6.34150565]
[1768724547641,5.3772463,142.07,142.03,6.34150565]
[1768724547841,14.37998826,142.09,142.03,6.34150565]
[1768724548036,5.37717403,142.08,142.03,6.34150565]
[1768724548235,5.37717403,142.07,142.03,6.34150565]
[1768724548540,14.37998826,142.09,142.03,6.34150565]
[1768724548740,5.37719063,142.08,142.03,6.34150565]
[1768724548941,5.37719063,142.07,142.03,6.34150565]
[1768724549144,14.37998826,142.09,142.03,6.34150565]
[1768724549345,5.37719057,142.08,142.03,6.34150565]
[1768724549544,5.37719057,142.07,142.03,6.34150565]
[1768724549746,14.37998826,142.09,142.03,6.34150565]
[1768724549948,5.37712692,142.08,142.03,6.34150565]
[1768724550149,5.37712692,142.07,142.03,6.34150565]
[1768724550342,14.37998826,142.09,142.03,6.34150565]
[1768724550542,11.7138353,142.08,142.03,6.34150565]
[1768724550748,5.3771353,142.07,142.03,6.34150565]
[1768724550948,6.3367,142.08,142.03,6.34150565]
[1768724551248,5.37715108,142.07,142.03,6.34150565]
[1768724551447,6.3367,142.08,142.03,6.34150565]
[1768724551646,5.37716261,142.07,142.03,6.34150565]
[1768724551849,6.3367,142.08,142.03,6.34150565]
[1768724552139,5.37709896,142.07,142.03,6.34150565]
[1768724552349,6.3367,142.08,142.03,6.34150565]
[1768724552542,5.37713905,142.07,142.03,6.34150565]
[1768724552740,6.3367,142.08,142.03,6.34150565]
[1768724552946,5.37718693,142.07,142.03,6.34150565]
[1768724553243,6.3367,142.08,142.03,6.34150565]
[1768724553447,5.37715838,142.07,142.03,6.34150565]
[1768724553746,6.3367,142.08,142.03,6.34150565]
[1768724553941,5.37709473,142.07,142.03,6.34150565]
[1768724554149,6.3367,142.08,142.03,6.34150565]
[1768724554445,5.37716405,142.07,142.03,6.34150565]
[1768724554646,6.3367,142.08,142.03,6.34150565]
[1768724554843,5.37708463,142.07,142.03,6.34150565]
[1768724555039,6.3367,142.08,142.03,6.34150565]
[1768724555251,5.37710537,142.07,142.03,6.34150565]
[1768724555447,6.3367,142.08,142.03,6.34150565]
[1768724555648,5.37713085,142.07,142.03,6.34150565]
[1768724555851,6.3367,142.08,142.03,6.34150565]
[1768724556052,5.37713085,142.07,142.03,6.34150565]
[1768724556354,6.3367,142.08,142.03,6.34150565]
[1768724556553,5.37539829,142.07,142.03,6.34150565]
[1768724556755,6.3367,142.08,142.03,6.34150565]
[1768724556954,5.37539227,142.07,142.03,6.34150565]
[1768724557155,6.3367,142.08,142.03,6.34150565]
[1768724557356,5.37545942,142.07,142.03,6.34150565]
[1768724557547,6.3367,142.08,142.03,6.34150565]
[1768724557754,5.37545942,142.07,142.03,6.34150565]
[1768724557951,6.3367,142.08,142.03,6.34150565]
[1768724558245,5.37545942,142.07,142.03,6.34150565]
[1768724558450,6.3367,142.08,142.03,6.34150565]
[1768724558751,5.37555685,142.07,142.03,6.34150565]
[1768724558947,6.3367,142.08,142.03,6.34150565]
[1768724559149,5.37555685,142.07,142.03,6.34150565]
[1768724559355,6.3367,142.08,142.03,6.34150565]
[1768724559550,5.3756469,142.07,142.03,6.34150565]
[1768724559756,6.3367,142.08,142.03,6.34150565]
[1768724559956,11.7127469,142.07,142.03,6.34150565]
[1768724560158,6.3371,142.07,142.03,6.34150565]
[1768724566169,6.3364,142.09,142.03,6.34150565]
[1768724566474,5.37686765,142.08,142.03,6.34150565]
[1768724566675,6.3364,142.09,142.03,6.34150565]
[1768724568877,8.19868793,142.1,142.03,6.34150565]
[1768724569065,5.37602879,142.09,142.03,6.34150565]
[1768724569270,8.19868793,142.1,142.03,6.34150565]
[1768724569569,5.3758203,142.09,142.03,6.34150565]
[1768724569770,8.19868793,142.1,142.03,6.34150565]
[1768724569970,5.3754839,142.09,142.03,6.34150565]
[1768724570172,8.19868793,142.1,142.03,6.34150565]
[1768724570371,5.37535715,142.09,142.03,6.34150565]
[1768724570676,8.19868793,142.1,142.03,6.34150565]
[1768724570873,5.37535715,142.09,142.03,6.34150565]
[1768724571080,8.19868793,142.1,142.03,6.34150565]
[1768724571380,5.37523191,142.09,142.03,6.34150565]
[1768724571575,8.19868793,142.1,142.03,6.34150565]
[1768724571775,5.37526298,142.09,142.03,6.34150565]
[1768724571974,8.19868793,142.1,142.03,6.34150565]
[1768724572178,5.37518739,142.09,142.03,6.34150565]
[1768724572380,0.04595678,142.07,142.03,6.34150565]
[1768724577478,8.19868793,142.1,142.03,6.34150565]
[1768724577681,5.37330058,142.09,142.04,6.66520291]
[1768724577978,8.19868793,142.1,142.04,6.66520291]
[1768724578178,5.37330058,142.09,142.04,6.66520291]
[1768724578379,8.19868793,142.1,142.04,6.66520291]
[1768724578573,5.37311539,142.09,142.04,6.66520291]
[1768724578777,8.19868793,142.1,142.04,6.66520291]
[1768724579078,5.37304579,142.09,142.04,6.66520291]
[1768724579378,8.19868793,142.1,142.04,6.66520291]
[1768724579574,5.37258757,142.09,142.04,6.66520291]
[1768724579778,8.19868793,142.1,142.04,6.66520291]
[1768724579985,5.37261862,142.09,142.04,6.66520291]
[1768724580284,6.42203693,142.1,142.04,6.66520291]
[1768724580479,5.37256176,142.09,142.04,6.66520291]
[1768724580685,14.53458793,142.1,142.04,6.66520291]
[1768724592893,12.75793693,142.1,142.04,6.66520291]
[1768724593089,14.53458793,142.1,142.04,6.66520291]
[1768724593896,8.19868793,142.1,142.04,6.66520291]
[1768724596796,6.42203693,142.1,142.04,6.66520291]
[1768724596995,8.19868793,142.1,142.04,6.66520291]
[1768724599905,8.19868793,142.1,142.04,13.00350291]
[1768724601303,8.19868793,142.1,142.05,6.62033193]
[1768724601805,6.42203693,142.1,142.05,6.62033193]
[1768724602005,8.19868793,142.1,142.05,6.62033193]
[1768724602607,8.19868793,142.1,142.05,12.95813193]
[1768724603307,1.776651,142.1,142.06,6.32763127]
[1768724604012,6.73882579,142.12,142.06,6.32763127]
[1768724604903,6.73882579,142.12,142.08,0.052203]
[1768724610709,6.73882579,142.14,142.08,6.37983427]
[1768724613007,6.73882579,142.14,142.09,6.32763127]
[1768724620116,6.73882579,142.14,142.09,12.66373127]
[1768724620310,1.776651,142.16,142.09,12.66373127]
[1768724620311,8.51666817,142.16,142.09,6.32763127]
[1768724620517,6.74001717,142.16,142.09,6.32763127]
[1768724621222,6.74001717,142.16,142.11,6.17792925]
[1768724621716,6.74001717,142.18,142.11,6.17792925]
[1768724621911,6.74001717,142.18,142.12,6.13145999]
[1768724622719,6.74001717,142.18,142.14,0.05279536]
[1768724624921,6.74001717,142.17,142.14,0.05279536]
[1768724625121,6.74001717,142.17,142.1,6.13145999]
[1768724625414,6.79034781,142.17,142.1,6.13145999]
[1768724627316,0.05033064,142.17,142.1,6.13145999]
[1768724627625,0.05033064,142.17,142.11,6.13145999]
[1768724632825,0.05033064,142.17,142.11,7.9059634]
[1768724633024,6.76500393,142.2,142.14,6.74959743]
[1768724635923,6.76500393,142.23,142.15,6.74959743]
[1768724636228,8.53950734,142.22,142.15,6.74959743]
[1768724636728,6.76500393,142.21,142.15,6.74959743]
[1768724636927,6.76500393,142.21,142.17,0.04723844]
[1768724641128,6.76500393,142.2,142.15,6.3334]
[1768724641528,6.81676216,142.2,142.15,6.3334]
[1768724641835,6.76500393,142.18,142.13,6.74959743]
[1768724642033,6.76500393,142.18,142.11,6.74959743]
[1768724642721,0.04901308,142.16,142.11,6.74959743]
[1768724642928,0.04901308,142.16,142.12,6.3347]
[1768724649932,6.81401701,142.16,142.12,6.3347]
[1768724650138,6.81401701,142.16,142.1,8.11000341]
[1768724650539,6.81401701,142.16,142.1,14.85960084]
[1768724655937,6.81401701,142.16,142.11,6.3351]
[1768724658341,6.81401701,142.16,142.11,13.08469743]
[1768724659341,0.04901308,142.16,142.11,13.08469743]
[1768724660642,0.04901308,142.16,142.12,6.3347]
[1768724660838,0.04901308,142.16,142.12,14.85880084]
[1768724661032,0.04901308,142.16,142.12,13.08429743]
[1768724661239,0.04901308,142.16,142.12,14.85880084]
[1768724661537,0.04901308,142.16,142.12,13.08429743]
[1768724668751,0.04901308,142.16,142.12,6.74959743]
[1768724690361,8.13654638,142.2,142.13,6.60221292]
[1768724690567,5.37390971,142.19,142.13,6.65327255]
[1768724690866,5.37390971,142.18,142.13,6.65327255]